fUSD/lending_fUSD_20260401
["ID","MTS","AMOUNT","RATE_DAILY","PERIOD"]
[419174395,1775002249992,-2162.30425498,0.00030597,2]
[419174396,1775002250003,-67726.49863211,0.000306,2]
[419174397,1775002250013,-16273.849179,0.00030683,2]
[419174398,1775002250022,-11658.01756446,0.00030683,2]
[419174399,1775002250057,-1360.95947265,0.00018692,2]
[419174400,1775002250335,-6332.86174511,0.00010073,2]
[419174401,1775002250344,-834.93572547,0.00010073,2]
[419174402,1775002250353,-206.34292365,0.00010073,2]
[419174403,1775002250363,-11534.53475124,0.00015254,2]
[419174404,1775002250625,-646.0500007,0.00012412,2]
[419174429,1775002501174,250.4824,0.000138,12]
[419174431,1775002586792,250.4558,0.000138,12]
[419174433,1775002659259,250.4292,0.000138,12]
[419174434,1775002795402,250.4026,0.000138,12]
[419174435,1775002865818,250.376,0.000138,12]
[419174437,1775002939062,250.3493,0.000138,12]
[419174438,1775003009563,250.3227,0.000138,12]
[419174439,1775003080933,250.296,0.000136,12]
[419174440,1775003151491,250.2692,0.000137,12]
[419174443,1775003222796,250.2425,0.000136,12]
[419174444,1775003236143,-150.0,9.789e-05,2]
[419174445,1775003236165,-150.0,9.789e-05,2]
[419174446,1775003236185,-59.37819937,0.00010333,2]
[419174447,1775003254636,-90.62180063,0.00010333,2]
[419174448,1775003254658,-300.0,0.00010688,2]
[419174449,1775003254680,-250.0,0.00010688,2]
[419174450,1775003254703,-520.0,0.00010689,2]
[419174451,1775003254725,-150.0,0.000107,2]
[419174452,1775003254746,-250.0,0.00010754,2]
[419174453,1775003254769,-501.74441407,0.00010773,2]
[419174454,1775003254790,-449.66762293,0.00010797,2]
[419174455,1775003293438,250.1997,0.000136,12]
[419174456,1775003359086,-657.62,9.303e-05,2]
[419174457,1775003359106,-250.0,9.691e-05,2]
[419174458,1775003359127,-327.71,0.0001008,2]
[419174459,1775003359147,-250.0,0.00010233,2]
[419174460,1775003359167,-317.81605759,0.00010313,2]
[419174461,1775003366708,250.1729,0.000138,12]
[419174462,1775003370302,-1682.18394241,0.00010313,2]
[419174463,1775003370322,-12112.62436061,0.00010313,2]
[419174464,1775003370342,-250.0,0.00010316,2]
[419174465,1775003370362,-500.0,0.00010773,2]
[419174466,1775003370381,-3699.12897707,0.00010797,2]
[419174467,1775003370401,-36909.16232576,0.00010797,2]
[419174475,1775003433170,-254.83,0.0001073,2]
[419174476,1775003433179,-250.0,0.00010763,2]
[419174477,1775003433189,-1200.0,0.00010796,2]
[419174478,1775003433203,-44446.85787424,0.00010797,2]
[419174479,1775003433213,-28912.09075139,0.00010797,2]
[419174480,1775003433279,-153507.97199016,0.00010797,2]
[419174481,1775003433291,-2964.81916666,0.00010797,2]
[419174482,1775003433303,-6039.01242859,0.00010797,2]
[419174483,1775003433314,-1717.03856977,0.00010797,2]
[419174484,1775003433389,-275.31112814,0.00010797,2]
[419174510,1775003436972,250.146,0.000138,12]
[419174512,1775003438397,-20310.0,0.00010792,2]
[419174513,1775003438409,-896.16431314,0.00010792,2]
[419174514,1775003438500,-245.62720038,0.00010792,2]
[419174515,1775003438512,-10391.57037895,0.00010792,2]
[419174516,1775003438523,-2194712.01736267,0.00010792,2]
[419174517,1775003438538,-713.71647197,0.00010792,2]
[419174518,1775003438573,-634.84517207,0.00010792,2]
[419174519,1775003438585,-544.31899255,0.00010792,2]
[419174520,1775003438654,-1045.01178,0.00010792,2]
[419174521,1775003438665,-270506.72832827,0.00010792,2]
[419174522,1775003438675,-74754.3971766,0.00010797,2]
[419174523,1775003438690,-1957.51787644,0.00010797,2]
[419174524,1775003438705,-334.615,0.00010797,2]
[419174525,1775003438731,-3999.99999999,0.00010797,2]
[419174526,1775003438743,-1389.5563097,0.00010797,2]
[419174530,1775003441114,-380.30947352,0.00010797,2]
[419174531,1775003441252,-4421.97654723,0.00010797,2]
[419174532,1775003441355,-3565.18647994,0.00010797,2]
[419174544,1775003443812,-290.0,0.00010797,2]
[419174545,1775003443975,-6193.52021139,0.00010797,2]
[419174552,1775003447020,-8754.63519752,0.00010797,2]
[419174553,1775003447033,-800.00006697,0.00010797,2]
[419174554,1775003447044,-575.78140085,0.00010797,2]
[419174556,1775003447071,-687796.61717095,0.00010797,2]
[419174565,1775003447226,-9886.56172402,0.00010797,2]
[419174568,1775003582035,250.1353,0.000135,12]
[419174578,1775003728128,250.1084,0.000133,12]
[419174579,1775003738939,-1179.24315846,0.0001003,2]
[419174580,1775003739011,-282.47605178,0.0001003,2]
[419174581,1775003739135,-150.6153884,0.0001003,2]
[419174582,1775003739217,-5579.18047473,0.0001003,2]
[419174583,1775003800230,250.0815,0.000133,12]
[419174585,1775003873377,250.0546,0.000133,12]
[419174587,1775003943898,250.0277,0.000133,12]
[419174588,1775004030035,250.0007,0.000132,12]
[419174589,1775004102367,249.9738,0.000132,12]
[419174592,1775004237879,249.9467,0.000132,12]
[419174593,1775004308928,249.9197,0.000132,12]
[419174594,1775004335511,166.0,0.00016101,120]
[419174595,1775004387969,249.8927,0.000129,12]
[419174596,1775004388212,322.5408,0.000143,17]
[419174598,1775004520513,353.01138374,0.00010958,10]
[419174599,1775004526474,249.8469,0.000129,12]
[419174600,1775004526729,322.4522,0.000143,17]
[419174601,1775004547203,-406.3525584,8.822e-05,2]
[419174603,1775004563115,-15.3074416,8.822e-05,2]
[419174604,1775004563138,-284.86541694,9.073e-05,2]
[419174605,1775004563161,-475.16,9.324e-05,2]
[419174606,1775004563182,-500.0,9.542e-05,2]
[419174607,1775004563203,-150.0,9.616e-05,2]
[419174608,1775004563224,-150.00000001,9.616e-05,2]
[419174609,1775004563246,-150.00000001,9.616e-05,2]
[419174610,1775004563267,-250.0,9.704e-05,2]
[419174611,1775004563287,-1757.36,9.727e-05,2]
[419174612,1775004563307,-500.0,9.776e-05,2]
[419174613,1775004563327,-200.0,9.851e-05,2]
[419174614,1775004563347,-805.58492663,0.0001003,2]
[419174615,1775004563370,-150.0,0.000102,2]
[419174616,1775004563391,-505.92514299,0.0001022,2]
[419174617,1775004563414,-333.0,0.00010228,2]
[419174618,1775004563436,-155.0,0.00010228,2]
[419174619,1775004563460,-150.54,0.00010228,2]
[419174620,1775004563480,-1624.0,0.00010229,2]
[419174621,1775004563502,-333.0,0.00010233,2]
[419174622,1775004563525,-300.0,0.00010248,2]
[419174623,1775004563549,-1200.0,0.00010249,2]
[419174624,1775004563572,-527.1024616,0.0001025,2]
[419174625,1775004563592,-295.96388095,0.00010256,2]
[419174626,1775004563613,-245.0,0.00010256,2]
[419174627,1775004563635,-959.0,0.00010341,2]
[419174628,1775004563658,-423.0,0.00010361,2]
[419174629,1775004563680,-555.0,0.000105,2]
[419174630,1775004563699,-444.0,0.000105,2]
[419174631,1775004563720,-200.0,0.000105,3]
[419174632,1775004563740,-1485.0,0.00010515,2]
[419174633,1775004563760,-1200.0,0.00010578,2]
[419174634,1775004563781,-4645.89,0.00010579,2]
[419174635,1775004563804,-171.065,0.00010579,2]
[419174636,1775004563825,-2500.0,0.00010596,2]
[419174637,1775004563846,-150.0,0.00010596,2]
[419174638,1775004563868,-16587.75748468,0.00010597,2]
[419174639,1775004599282,249.7684,0.000133,12]
[419174643,1775004631729,-826.60347514,0.00010596,2]
[419174644,1775004631741,-373.39652486,0.00010596,2]
[419174645,1775004631751,-1626.60347514,0.00010597,2]
[419174646,1775004631889,-14799.76324018,0.00010597,2]
[419174647,1775004631899,-1000.0,0.00010597,2]
[419174648,1775004631908,-2750.6,0.00010597,2]
[419174649,1775004631918,-2750.6,0.00010597,2]
[419174650,1775004631930,-2750.6,0.00010597,2]
[419174651,1775004631940,-2750.6,0.00010597,2]
[419174652,1775004631950,-2500.0,0.00010597,2]
[419174653,1775004631961,-400.0,0.000106,3]
[419174654,1775004631971,-298.27901701,0.000106,2]
[419174655,1775004631981,-213.18798956,0.000106,2]
[419174656,1775004631991,-8579.06167556,0.000106,2]
[419174657,1775004632001,-150.0,0.000106,2]
[419174658,1775004632011,-200.0,0.000106,2]
[419174659,1775004632021,-192.492138,0.00010627,2]
[419174660,1775004632031,-200.7886617,0.00010673,2]
[419174661,1775004632040,-500.0,0.00010673,2]
[419174662,1775004632050,-500.0,0.00010689,2]
[419174663,1775004632060,-500.0,0.00010689,2]
[419174664,1775004632071,-265.93591731,0.00010689,2]
[419174665,1775004632081,-500.0,0.00010689,2]
[419174666,1775004632091,-250.94733218,0.00010689,2]
[419174667,1775004632101,-500.0,0.00010689,2]
[419174668,1775004632111,-500.0,0.00010689,2]
[419174669,1775004632121,-500.0,0.00010689,2]
[419174670,1775004632131,-507.37000497,0.00010689,2]
[419174671,1775004632140,-500.0,0.00010689,2]
[419174672,1775004632150,-500.0,0.00010689,2]
[419174673,1775004632159,-548.43540375,0.00010689,2]
[419174674,1775004632169,-500.0,0.00010689,2]
[419174675,1775004632178,-516.35199836,0.00010689,2]
[419174676,1775004632190,-500.0,0.00010689,2]
[419174678,1775004632200,-500.0,0.00010689,2]
[419174680,1775004632210,-500.0,0.00010689,2]
[419174682,1775004632220,-393.57123293,0.00010689,2]
[419174683,1775004632230,-500.0,0.00010689,2]
[419174684,1775004632239,-500.0,0.00010689,2]
[419174685,1775004632250,-500.0,0.00010689,2]
[419174686,1775004632260,-500.0,0.00010689,2]
[419174687,1775004632270,-500.0,0.00010689,2]
[419174688,1775004632279,-500.0,0.00010689,2]
[419174689,1775004632290,-500.0,0.00010689,2]
[419174690,1775004632300,-500.0,0.00010689,2]
[419174691,1775004632310,-500.0,0.00010689,2]
[419174692,1775004632320,-500.0,0.00010689,2]
[419174693,1775004632330,-500.0,0.00010689,2]
[419174694,1775004632340,-500.0,0.00010689,2]
[419174695,1775004632350,-500.0,0.00010689,2]
[419174696,1775004632361,-500.0,0.00010689,2]
[419174697,1775004632372,-500.0,0.00010689,2]
[419174698,1775004632383,-500.0,0.00010689,2]
[419174699,1775004632393,-500.0,0.00010689,2]
[419174700,1775004632404,-500.0,0.00010689,2]
[419174701,1775004632415,-500.0,0.00010689,2]
[419174702,1775004632426,-500.0,0.00010689,2]
[419174703,1775004632437,-500.0,0.00010689,2]
[419174704,1775004632448,-500.0,0.00010689,2]
[419174705,1775004632459,-500.0,0.00010689,2]
[419174706,1775004632470,-500.0,0.00010689,2]
[419174707,1775004632480,-500.0,0.00010689,2]
[419174708,1775004632490,-500.0,0.00010689,2]
[419174709,1775004632500,-500.0,0.00010689,2]
[419174710,1775004632511,-500.0,0.00010689,2]
[419174711,1775004632521,-500.0,0.00010689,2]
[419174712,1775004632531,-500.0,0.00010689,2]
[419174713,1775004632541,-500.0,0.00010689,2]
[419174714,1775004632551,-500.0,0.00010689,2]
[419174715,1775004632561,-636.86133031,0.00010689,2]
[419174716,1775004632571,-500.0,0.00010689,2]
[419174717,1775004632581,-500.0,0.00010689,2]
[419174718,1775004632591,-500.0,0.00010689,2]
[419174719,1775004632601,-500.0,0.00010689,2]
[419174720,1775004632612,-500.0,0.00010689,2]
[419174721,1775004632622,-500.0,0.00010689,2]
[419174722,1775004632632,-500.0,0.00010689,2]
[419174723,1775004632642,-500.0,0.00010689,2]
[419174724,1775004632665,-500.0,0.00010689,2]
[419174725,1775004632675,-500.0,0.00010689,2]
[419174726,1775004632685,-219.62090831,0.00010689,2]
[419174727,1775004632696,-500.0,0.00010689,2]
[419174728,1775004632706,-500.0,0.00010689,2]
[419174729,1775004632716,-500.0,0.00010689,2]
[419174730,1775004632727,-500.0,0.00010689,2]
[419174731,1775004632737,-500.0,0.00010689,2]
[419174732,1775004632747,-500.0,0.00010689,2]
[419174733,1775004632757,-500.0,0.00010689,2]
[419174734,1775004632767,-500.0,0.00010689,2]
[419174735,1775004632777,-500.0,0.00010689,2]
[419174736,1775004632787,-500.0,0.00010689,2]
[419174737,1775004632797,-500.0,0.00010689,2]
[419174738,1775004632808,-500.0,0.00010689,2]
[419174739,1775004632820,-500.0,0.00010689,2]
[419174740,1775004632831,-500.0,0.00010689,2]
[419174741,1775004632842,-500.0,0.00010689,2]
[419174742,1775004632853,-500.0,0.00010689,2]
[419174743,1775004632864,-500.0,0.00010689,2]
[419174744,1775004632874,-500.0,0.00010689,2]
[419174745,1775004632886,-500.0,0.00010689,2]
[419174746,1775004632896,-500.0,0.00010689,2]
[419174747,1775004632907,-500.0,0.00010689,2]
[419174748,1775004632917,-500.0,0.00010689,2]
[419174749,1775004632927,-500.0,0.00010689,2]
[419174750,1775004632938,-500.0,0.00010689,2]
[419174751,1775004632948,-500.0,0.00010689,2]
[419174752,1775004632958,-500.0,0.00010689,2]
[419174753,1775004632969,-500.0,0.00010689,2]
[419174754,1775004632979,-500.0,0.00010689,2]
[419174755,1775004632990,-500.0,0.00010689,2]
[419174756,1775004633000,-500.0,0.00010689,2]
[419174757,1775004633010,-500.0,0.00010689,2]
[419174758,1775004633021,-500.0,0.00010689,2]
[419174759,1775004633031,-500.0,0.00010689,2]
[419174760,1775004633042,-500.0,0.00010689,2]
[419174761,1775004633052,-500.0,0.00010689,2]
[419174762,1775004633063,-500.0,0.00010689,2]
[419174763,1775004633074,-409.12183899,0.00010689,2]
[419174764,1775004633085,-500.0,0.00010689,2]
[419174765,1775004633095,-500.0,0.00010689,2]
[419174766,1775004633106,-499.99999999,0.00010689,2]
[419174767,1775004633117,-3915.1283346,0.00010689,2]
[419174768,1775004633127,-3915.1283346,0.00010689,2]
[419174769,1775004633137,-3915.1283346,0.00010689,2]
[419174770,1775004633150,-3915.1283346,0.00010689,2]
[419174771,1775004633160,-3915.1283346,0.00010689,2]
[419174772,1775004633171,-3915.1283346,0.00010689,2]
[419174773,1775004633182,-3915.1283346,0.00010689,2]
[419174774,1775004633192,-3915.1283346,0.00010689,2]
[419174775,1775004633202,-3915.1283346,0.00010689,2]
[419174776,1775004633213,-3915.1283346,0.00010689,2]
[419174777,1775004633223,-3915.1283346,0.00010689,2]
[419174778,1775004633233,-3915.1283346,0.00010689,2]
[419174779,1775004633243,-3915.1283346,0.00010689,2]
[419174780,1775004633253,-742.56272272,0.00010689,2]
[419174781,1775004634781,-3172.56561188,0.00010689,2]
[419174782,1775004634791,-3915.1283346,0.00010689,2]
[419174783,1775004634802,-3915.1283346,0.00010689,2]
[419174784,1775004634814,-3915.1283346,0.00010689,2]
[419174785,1775004634824,-3915.1283346,0.00010689,2]
[419174786,1775004634835,-826.93560946,0.00010689,2]
[419174787,1775004634849,-3088.19272514,0.00010689,2]
[419174788,1775004634860,-3915.1283346,0.00010689,2]
[419174789,1775004634871,-2350.80168095,0.00010689,2]
[419174790,1775004634883,-695.92687277,0.00010689,2]
[419174799,1775004640041,-868.39978088,0.00010689,2]
[419174800,1775004640051,-3915.1283346,0.00010689,2]
[419174801,1775004640061,-3915.1283346,0.00010689,2]
[419174802,1775004640071,-3915.1283346,0.00010689,2]
[419174803,1775004640081,-3915.1283346,0.00010689,2]
[419174804,1775004640090,-3915.1283346,0.00010689,2]
[419174805,1775004640101,-3915.1283346,0.00010689,2]
[419174806,1775004640113,-3915.1283346,0.00010689,2]
[419174807,1775004640133,-3915.1283346,0.00010689,2]
[419174808,1775004640153,-3915.1283346,0.00010689,2]
[419174809,1775004640163,-4280.21866798,0.00010689,2]
[419174810,1775004640172,-4280.21866798,0.00010689,2]
[419174811,1775004640182,-4280.21866798,0.00010689,2]
[419174812,1775004640192,-4280.21866798,0.00010689,2]
[419174813,1775004640202,-4280.21866798,0.00010689,2]
[419174814,1775004640212,-151.0,0.00010691,2]
[419174815,1775004640222,-151.0,0.00010691,2]
[419174816,1775004640232,-151.0,0.00010691,2]
[419174817,1775004640242,-151.0,0.00010691,2]
[419174818,1775004640252,-1156.41848616,0.00010691,2]
[419174819,1775004640262,-151.0,0.00010691,2]
[419174820,1775004640272,-151.0,0.00010691,2]
[419174821,1775004640282,-151.0,0.00010691,2]
[419174822,1775004640292,-151.0,0.00010691,2]
[419174823,1775004640303,-151.0,0.00010691,2]
[419174824,1775004640312,-151.0,0.00010691,2]
[419174825,1775004640322,-151.0,0.00010691,2]
[419174826,1775004640332,-151.0,0.00010691,2]
[419174827,1775004640343,-151.0,0.00010691,2]
[419174828,1775004640354,-151.0,0.00010691,2]
[419174829,1775004640364,-151.0,0.00010691,2]
[419174830,1775004640374,-151.0,0.00010691,2]
[419174831,1775004640384,-151.0,0.00010691,2]
[419174832,1775004640394,-151.0,0.00010691,2]
[419174833,1775004640404,-151.0,0.00010691,2]
[419174834,1775004640414,-151.0,0.00010691,2]
[419174835,1775004640424,-886.55,0.00010693,2]
[419174836,1775004640435,-155.341,0.00010695,2]
[419174837,1775004640444,-500.0,0.00010696,2]
[419174838,1775004640459,-700.0,0.000107,3]
[419174839,1775004640469,-21660.2929981,0.0001079,2]
[419174840,1775004640479,-40685.74938356,0.0001079,2]
[419174841,1775004640653,-14269.12965518,0.0001079,2]
[419174842,1775004640756,-2077.19663036,0.0001079,2]
[419174843,1775004641561,-363833.2928452,0.0001079,2]
[419174844,1775004641571,-3489.1615226,0.0001079,2]
[419174845,1775004641580,-148838.1321226,0.00010791,2]
[419174846,1775004641591,-900.0,0.000108,3]
[419174847,1775004641602,-624.0,0.00010893,2]
[419174848,1775004641612,-1337.54368825,0.00010898,3]
[419174849,1775004641623,-1200.0,0.000109,3]
[419174850,1775004641633,-500.0,0.00010958,2]
[419174851,1775004641645,-500.0,0.00010958,3]
[419174852,1775004641657,-500.0,0.00010958,4]
[419174853,1775004641668,-500.0,0.00010958,5]
[419174854,1775004641679,-500.0,0.00010958,6]
[419174855,1775004641689,-500.0,0.00010958,2]
[419174856,1775004641699,-500.0,0.00010958,3]
[419174857,1775004641710,-500.0,0.00010958,4]
[419174858,1775004641722,-500.0,0.00010958,5]
[419174859,1775004641732,-500.0,0.00010958,6]
[419174860,1775004641742,-500.0,0.00010958,7]
[419174861,1775004641753,-500.0,0.00010958,8]
[419174862,1775004641763,-500.0,0.00010958,9]
[419174863,1775004641774,-150.0,0.00010959,2]
[419174864,1775004641784,-150.0,0.00010959,2]
[419174865,1775004641794,-886.55,0.00010967,2]
[419174866,1775004641804,-250.0,0.00010974,2]
[419174867,1775004641813,-284.99,0.00011079,2]
[419174868,1775004641823,-98274.1,0.00011097,2]
[419174870,1775004641835,-16177.31608366,0.00011099,2]
[419174872,1775004641845,-16177.31608361,0.00011099,2]
[419174874,1775004641855,-24593.5745105,0.00011099,2]
[419174876,1775004641864,-151.0,0.00011164,2]
[419174878,1775004641874,-1000.0,0.00011221,2]
[419174880,1775004641884,-1199.20597015,0.00011239,2]
[419174882,1775004641893,-886.55,0.00011241,2]
[419174884,1775004641903,-166.66,0.0001139,2]
[419174886,1775004641913,-16177.31608361,0.00011449,2]
[419174888,1775004641922,-8929.2,0.00011484,2]
[419174890,1775004641932,-150.54,0.00011507,2]
[419174892,1775004641942,-2028.47,0.00011507,2]
[419174894,1775004641951,-886.55,0.00011515,2]
[419174896,1775004641961,-2000.0,0.00011602,2]
[419174898,1775004641971,-255.0,0.00011624,2]
[419174900,1775004641981,-300.0,0.00011656,2]
[419174902,1775004641990,-300.0,0.00011656,2]
[419174904,1775004642000,-300.0,0.00011656,2]
[419174906,1775004642010,-300.67968158,0.00011656,2]
[419174908,1775004642019,-1680.0,0.00011656,2]
[419174910,1775004642029,-600.0,0.00011657,2]
[419174912,1775004642039,-600.0,0.00011657,2]
[419174914,1775004642049,-600.0,0.00011657,2]
[419174916,1775004642059,-600.0,0.00011657,2]
[419174918,1775004642069,-600.0,0.00011657,2]
[419174920,1775004642079,-1393.74,0.0001168,2]
[419174922,1775004642089,-155.0,0.00011765,2]
[419174924,1775004642099,-166.66,0.00011766,2]
[419174926,1775004642109,-949.88014419,0.00011768,2]
[419174928,1775004642119,-742.68444345,0.00011787,2]
[419174930,1775004642128,-886.55,0.00011789,2]
[419174933,1775004642139,-16177.31608361,0.00011873,2]
[419174935,1775004642149,-193.5594,0.00012,7]
[419174937,1775004642158,-260.17,0.0001202,2]
[419174939,1775004642168,-882.7907463,0.00012023,2]
[419174941,1775004642178,-420865.3685143,0.00012033,2]
[419174943,1775004642188,-148838.1321226,0.00012034,2]
[419174945,1775004642198,-886.55,0.00012063,2]
[419174947,1775004642207,-166.66,0.00012142,2]
[419174949,1775004642216,-24593.57451048,0.00012182,2]
[419174951,1775004642225,-16177.31608361,0.00012298,2]
[419174953,1775004642235,-886.55,0.00012337,2]
[419174955,1775004642245,-166.66,0.00012518,2]
[419174957,1775004642254,-886.60583943,0.00012611,2]
[419174958,1775004642264,-16177.31608361,0.00012722,2]
[419174961,1775004642274,-1301.05,0.00012732,2]
[419174963,1775004642284,-500.0,0.0001274,2]
[419174964,1775004642294,-433.0,0.00012747,2]
[419174966,1775004642303,-150.54,0.00012785,2]
[419174969,1775004642313,-2351.0,0.00012821,2]
[419174971,1775004642324,-155.0,0.00012834,2]
[419174972,1775004642334,-2000.0,0.00012891,2]
[419174975,1775004642344,-166.66,0.00012894,2]
[419174977,1775004642354,-168.16,0.00012953,2]
[419174979,1775004642364,-158.71741229,0.00012987,2]
[419174981,1775004642374,-213.39171605,0.00012987,2]
[419174983,1775004642383,-199.59776285,0.00012987,2]
[419174984,1775004642392,-159.18918241,0.00012987,2]
[419174986,1775004642402,-250.0,0.00013,2]
[419174989,1775004642412,-271.508473,0.00013011,2]
[419174991,1775004642422,-218.104389,0.00013011,2]
[419174993,1775004642431,-264.994907,0.00013011,2]
[419174995,1775004642441,-211.131961,0.00013011,2]
[419174996,1775004642451,-189.48938,0.00013011,2]
[419174998,1775004642460,-502.0,0.00013111,2]
[419175000,1775004642470,-502.00006,0.00013111,2]
[419175002,1775004642479,-1393.74,0.0001314,2]
[419175005,1775004642490,-16177.31608361,0.00013147,2]
[419175006,1775004642501,-1006.5,0.00013151,2]
[419175008,1775004642512,-4833.0646455,0.00013165,2]
[419175011,1775004642522,-778.5371693,0.00013165,2]
[419175013,1775004642531,-2934.93,0.00013213,2]
[419175014,1775004642541,-166.66,0.0001327,2]
[419175016,1775004642550,-151.0,0.00013276,2]
[419175018,1775004642559,-157.728138,0.00013276,2]
[419175021,1775004642569,-157.728138,0.00013276,2]
[419175022,1775004642578,-157.728138,0.00013276,2]
[419175024,1775004642588,-157.728138,0.00013276,2]
[419175027,1775004642597,-420865.3685143,0.00013276,2]
[419175030,1775004642606,-148838.1321226,0.00013277,2]
[419175033,1775004642615,-3240.0,0.00013425,2]
[419175035,1775004642624,-200.0,0.000135,2]
[419175037,1775004642633,-200.0,0.000135,2]
[419175039,1775004642643,-200.0,0.000135,2]
[419175041,1775004642652,-200.0,0.000135,2]
[419175043,1775004642662,-200.0,0.000135,2]
[419175045,1775004642671,-16177.31608361,0.00013571,2]
[419175048,1775004642681,-1078.4024883,0.00013695,2]
[419175049,1775004642691,-173.7151232,0.00013695,2]
[419175051,1775004642700,-500.0,0.00013698,2]
[419175053,1775004642709,-500.0,0.00013698,2]
[419175055,1775004642718,-500.0,0.00013698,2]
[419175057,1775004642727,-511.80789898,0.00013698,2]
[419175059,1775004642737,-500.0,0.00013698,2]
[419175061,1775004642746,-500.0,0.00013698,2]
[419175063,1775004642756,-500.0,0.00013698,2]
[419175065,1775004642767,-500.0,0.00013698,2]
[419175068,1775004642776,-500.0,0.00013698,2]
[419175070,1775004642786,-500.0,0.00013698,2]
[419175071,1775004642796,-500.0,0.00013698,2]
[419175074,1775004642806,-500.0,0.00013698,2]
[419175076,1775004642815,-500.0,0.00013698,2]
[419175078,1775004642825,-500.0,0.00013698,2]
[419175079,1775004642835,-533.14016549,0.00013698,2]
[419175081,1775004642844,-500.0,0.00013698,2]
[419175083,1775004642854,-500.0,0.00013698,2]
[419175085,1775004642863,-500.0,0.00013698,2]
[419175087,1775004642872,-500.0,0.00013698,2]
[419175089,1775004642882,-500.0,0.00013698,2]
[419175091,1775004642891,-500.0,0.00013698,2]
[419175093,1775004642900,-500.0,0.00013698,2]
[419175095,1775004642909,-566.97722897,0.00013698,2]
[419175097,1775004642918,-150.0,0.00013699,2]
[419175099,1775004642927,-166.66,0.00013699,2]
[419175101,1775004642936,-200.0,0.00013699,2]
[419175103,1775004642945,-202.12,0.00013699,2]
[419175105,1775004642955,-158.44,0.00013699,2]
[419175107,1775004642964,-792.21,0.00013699,2]
[419175109,1775004642974,-357.2823536,0.00013699,2]
[419175111,1775004642983,-500.0,0.00013699,2]
[419175113,1775004642992,-500.0,0.00013699,2]
[419175115,1775004643001,-500.0,0.00013699,2]
[419175117,1775004643011,-500.0,0.00013699,2]
[419175119,1775004643020,-500.0,0.00013699,2]
[419175121,1775004643030,-500.0,0.00013699,2]
[419175123,1775004643039,-500.0,0.00013699,2]
[419175125,1775004643049,-500.0,0.00013699,2]
[419175127,1775004643059,-500.0,0.00013699,2]
[419175129,1775004643069,-500.0,0.00013699,2]
[419175131,1775004643078,-500.37169193,0.00013699,2]
[419175133,1775004643088,-312.52998619,0.00013699,2]
[419175135,1775004643098,-286.26486585,0.00013699,2]
[419175137,1775004643109,-500.0,0.00013699,2]
[419175139,1775004643118,-500.0,0.00013699,2]
[419175141,1775004643129,-500.0,0.00013699,2]
[419175143,1775004643139,-500.0,0.00013699,2]
[419175146,1775004643148,-500.0,0.00013699,2]
[419175148,1775004643158,-342.8094935,0.00013699,2]
[419175150,1775004643168,-162.63096003,0.00013699,2]
[419175151,1775004643178,-24593.57451048,0.00013772,2]
[419175152,1775004643188,-200.0,0.000138,2]
[419175153,1775004643198,-166.66,0.00013836,2]
[419175154,1775004643208,-200.0,0.00013938,2]
[419175155,1775004643218,-150.0,0.00013973,2]
[419175156,1775004643228,-166.66,0.00013973,2]
[419175157,1775004643238,-468.0,0.00013987,2]
[419175158,1775004643249,-16177.31608361,0.00013996,2]
[419175159,1775004643259,-28692.08909669,0.00014006,2]